Cogmind - Beta 14 @@@ ROGUE MODE // 2025.03.25 @ 23:07:16 Player: SelfCookedBird Result: Destroyed by D-53 Grenadier with Mini Grenade Launcher Performance ------------- Evolutions (0) 0 Regions Visited (2) 400 Robots Destroyed (13) 65 Value Destroyed (264) 264 Prototype IDs (0) 0 Alien Tech Used (0) 0 Bonus (0) 0 TOTAL SCORE: 729 Bonus ------- None Cogmind --------- Core Integrity 0/250 Matter 292/300 Energy 94/100 System Corruption 0% Temperature Cool (0) Movement Core (150) Ox2 Location -10/Mines Parts ------- > --- POWER (1) -------- (None) > --- PROPULSION (2) --- (None) > --- UTILITY (2) ------ Small Storage Unit ECM Suite > --- WEAPON (2) ------- (None) > --- INVENTORY (8) ---- Light Ion Engine Improved Heat Sink Huge Storage Unit Medium Laser Small Laser Shock Trap Shock Trap Shock Trap Peak State ------------ > --- POWER ------------ Ion Engine > --- PROPULSION ------- Aluminum Leg Aluminum Leg > --- UTILITY ---------- Small Storage Unit ECM Suite > --- WEAPON ----------- Medium Laser Beam Cannon > --- INVENTORY -------- Light Ion Engine Light Treads Light Treads Improved Heat Sink Huge Storage Unit Small Laser Datajack Shock Trap [Rating: 8] Favorites ----------- Power Ion Engine Engine Ion Engine Propulsion Aluminum Leg Treads Light Treads Leg Aluminum Leg Utility Small Storage Unit Device ECM Suite Storage Small Storage Unit Weapon Assault Rifle Energy Gun Medium Laser Energy Cannon Beam Cannon Ballistic Gun Assault Rifle Launcher Grenade Launcher Special Melee Weapon Datajack Build | -11 -10 -10 ------- Run | Yrd Mat Min Slots Evolved . | . . . Power . | . . . Propulsion . | . . . Utility . | . . . Weapon . | . . . Parts Attached 22 | 7 5 10 Power 4 | 2 1 1 Engine 4 | 2 1 1 Core . | . . . Reactor . | . . . Propulsion 7 | 2 1 4 Treads 2 | . . 2 Leg 5 | 2 1 2 Wheel . | . . . Hover . | . . . Flight . | . . . Utility 5 | 1 2 2 Device 1 | . 1 . Storage 4 | 1 1 2 Processor . | . . . Hackware . | . . . Protection . | . . . Artifact . | . . . Weapon 6 | 2 1 3 Energy Gun 2 | 1 . 1 Energy Cannon 1 | . . 1 Ballistic Gun 1 | 1 . . Ballistic Cannon . | . . . Launcher 1 | . 1 . Special Weapon . | . . . Impact Weapon . | . . . Slashing Weapon . | . . . Piercing Weapon . | . . . Special Melee Weapon 1 | . . 1 Unidentified Prototypes . | . . . Parts Lost 9 | . . 9 Power 2 | . . 2 Propulsion 3 | . . 3 Utility . | . . . Weapon 4 | . . 4 Highest Loss Streak 5 | . . 5 To Critical Strikes . | . . . Average Slot Usage (%) 94 | . 89 97 Engine 13 | . 14 13 Treads 9 | . . 16 Leg 17 | . 28 11 Device 10 | . 4 14 Storage 14 | . 14 14 Energy Gun 4 | . 1 5 Energy Cannon 8 | . . 13 Ballistic Gun 5 | . 14 . Launcher 5 | . 12 . Special Melee Weapon 4 | . . 7 Peak Build Rating 8 | 6 7 8 Average Rating 6 | 5 6 7 On Entrance 4 | . 6 7 Naked Turns . | . . . Heaviest Build 17 | 12 15 17 Greatest Support 40 | 20 20 40 Greatest Overweight (x) 2 | 1 . 2 Average Overweight (x) . | . . . Largest Inventory Capacity 25 | 8 8 25 Average Capacity 7 | 6 8 8 Most Carried 8 | 8 8 8 Average Carried 6 | 3 7 6 Final Capacity 8 | 8 8 8 Final Carried 8 | 8 8 8 Class Distribution -------------------- 100% | Mutant Dominant Class ---------------- Mutant | -10/Materials Mutant | -10/Mines Resources | -11 -10 -10 ----------- Run | Yrd Mat Min Matter Collected 496 | 254 34 208 Remotely . | . . . Salvage Created 301 | 75 50 176 Parts 15 | 2 5 8 Haulers Intercepted . | . . . Recyclers Shooed . | . . . Parts Field Recycled . | . . . Retrieved Matter . | . . . Parts Self-Destructed . | . . . Prevented . | . . . Kills | -11 -10 -10 ------- Run | Yrd Mat Min Combat Hostiles Destroyed 11 | . 2 9 Cannons 7 | . . 7 AOE 3 | . 2 1 Classes Destroyed 4 | 1 2 1 Recycler 1 | 1 . . Watcher 1 | . 1 . Swarmer 7 | . . 7 Grunt 4 | . 2 2 Best Kill Streak 3 | 1 3 3 Combat Bots Only 3 | . 2 3 Max Kills in Single Turn 1 | 1 1 1 Gunslinging . | . . . Exploded 1 | . 1 1 Melee . | . . . Uniques/NPCs Destroyed . | . . . Combat | -11 -10 -10 -------- Run | Yrd Mat Min Hostile Shots Fired 132 | . 17 115 Missed 36 | . 6 30 Damage Taken 1332 | . 226 1106 Core 270 | . 11 259 Absorbed by Shields . | . . . Core Remaining (%) 100 | 100 . . Volleys Fired 39 | 1 8 30 Largest 2 | 1 2 2 Hottest 110 | 20 50 110 Shots Fired 65 | 1 15 49 Gun 29 | 1 8 20 Cannon 27 | . . 27 Launcher 9 | . 7 2 Special . | . . . Kinetic 13 | 1 8 4 Thermal 43 | . . 43 Explosive 9 | . 7 2 Electromagnetic . | . . . Robot Hit Streak 7 | 1 3 7 Robot Miss Streak 7 | . 3 7 Penetration Max . | . . . Secondary Targets . | . . . Shots Hit Robots 35 | 1 7 27 Core Hits 18 | 1 8 9 Critical Kills 1 | . . 1 Critical Parts Destroyed . | . . . Critical Strikes 1 | . . 1 Meltdown 1 | . . 1 Melee Attacks 2 | . . 2 Impact . | . . . Slashing . | . . . Piercing . | . . . Sneak Attacks 2 | . . 2 Combat Hostiles . | . . . Follow-up Attacks . | . . . Damage Inflicted 816 | 15 300 501 Guns 164 | 15 13 136 Cannons 266 | . . 266 Explosions 386 | . 287 99 Melee . | . . . Ramming . | . . . Kinetic 39 | 15 13 11 Thermal 391 | . . 391 Explosive 386 | . 287 99 Electromagnetic . | . . . Impact . | . . . Slashing . | . . . Piercing . | . . . Highest Corruption . | . . . Average Corruption . | . . . Corruption Purged . | . . . Corruption Blocked . | . . . Overload Shots . | . . . Overflow Damage . | . . . Projectiles . | . . . Explosions . | . . . Melee . | . . . Knockbacks . | . . . Impact . | . . . Kinetic . | . . . Secondary . | . . . Self-Inflicted Damage 104 | . 89 15 Shots 6 | . 5 1 Rammed . | . . . Targets Rammed . | . . . Kicked . | . . . Crushed . | . . . Highest Temperature 439 | . 18 439 Average Temperature 136 | . 6 143 Received Heat Transfer 180 | . 78 102 Effects 3 | . . 3 Shutdowns 1 | . . 1 Short Circuit 1 | . . 1 Damage (minor) 1 | . . 1 Siege Activations . | . . . Robots Corrupted . | . . . Combat Hostiles . | . . . Parts Fried . | . . . Impact Corruptions . | . . . Robots Melted 1 | . . 1 Combat Hostiles 1 | . . 1 Parts Melted 3 | . . 3 Heat Transferred 925 | . . 925 Parts Sabotaged . | . . . Parts Stolen . | . . . Parts Stripped . | . . . Power Chain Reactions . | . . . Alert | -11 -10 -10 ------- Run | Yrd Mat Min Peak Influence 320 | 5 135 320 Initial 52 | . 3 52 Average 124 | 4 39 219 Maximum Alert Level 1 | . . 1 Low Security (%) 63 | 100 100 27 Level 1 36 | . . 72 Level 2 . | . . . Level 3 . | . . . Level 4 . | . . . Level 5 . | . . . High Security . | . . . Max Security . | . . . Squads Dispatched 1 | . 1 . Investigation . | . . . Extermination . | . . . Reinforcement 1 | . 1 . Assault . | . . . Garrison . | . . . Intercept . | . . . Searches Triggered . | . . . Construction Impeded . | . . . Haulers Reinforced . | . . . Active Scanning Responses . | . . . Cargo Convoy Interrupts . | . . . Stealth | -11 -10 -10 --------- Run | Yrd Mat Min Distress Signals 1 | . 1 . Communications Jammed . | . . . Distress Signals . | . . . Times Spotted 17 | . 5 12 Peak Tracking Total 5 | . 3 5 Tactical Retreats 3 | . 1 2 Traps | -11 -10 -10 ------- Run | Yrd Mat Min Traps Triggered . | . . . Indirectly . | . . . Trap Hack Attempts . | . . . Triggered . | . . . Disarmed . | . . . Reprogrammed . | . . . Reused . | . . . Traps Extracted . | . . . Installed . | . . . Triggered . | . . . Most Traps Carried 3 | . . 3 Machines | -11 -10 -10 ---------- Run | Yrd Mat Min Machines Disabled 1 | . . 1 Max in Single Turn 1 | . . 1 Machines Repaired . | . . . Machines Dismantled . | . . . Machines Sabotaged . | . . . Overloaded Fab Kills . | . . . Hacking | -11 -10 -10 --------- Run | Yrd Mat Min Machines Accessed 1 | . 1 . Terminals 1 | . 1 . Fabricators . | . . . Repair Stations . | . . . Recycling Units . | . . . Scanalyzers . | . . . Garrison Access . | . . . Total Hacks 1 | . 1 . Successful 1 | . 1 . Failed . | . . . Catastrophic . | . . . Database Lockouts . | . . . Manual . | . . . Terminals 1 | . 1 . Fabricators . | . . . Repair Stations . | . . . Recycling Units . | . . . Scanalyzers . | . . . Garrison Access . | . . . Terminal Hacks 1 | . 1 . Recall Investigation 1 | . 1 . Fabricator Hacks . | . . . Repair Station Hacks . | . . . Recycling Unit Hacks . | . . . Scanalyzer . | . . . Garrison Access Hacks . | . . . Unauthorized Hacks . | . . . Terminals . | . . . Fabricators . | . . . Repair Stations . | . . . Recycling Units . | . . . Scanalyzers . | . . . Garrison Access . | . . . Data Cores Recovered . | . . . Used . | . . . Hacking Detections 1 | . 1 . Full Trace Events . | . . . Feedback Events . | . . . Feedback Blocked . | . . . Robot Schematics Acquired . | . . . Robots Built . | . . . Authchips . | . . . Time . | . . . Total Robot Build Rating . | . . . Part Schematics Acquired . | . . . Parts Built . | . . . Authchips . | . . . Time . | . . . Total Part Build Rating . | . . . Parts Repaired . | . . . Time . | . . . Parts Recycled . | . . . Recycled Matter . | . . . Retrieved Matter . | . . . Retrieved Components . | . . . Parts Scanalyzed . | . . . Part Schematics Acquired . | . . . Parts Damaged . | . . . Bothacking | -11 -10 -10 ------------ Run | Yrd Mat Min Used RIF Installer . | . . . Robots Hacked 1 | . . 1 Non-combat 1 | . . 1 Combat . | . . . Robot Hacks Applied 1 | . . 1 no_distress 1 | . . 1 Relay Couplers Released . | . . . Fabnet Peak Effective % . | . . . Robots Rewired . | . . . Allies Hacked . | . . . Hacks Repelled . | . . . Allies | -11 -10 -10 -------- Run | Yrd Mat Min Total Allies . | . . . Largest Group . | . . . Highest-Rated Group . | . . . Highest-Rated Ally . | . . . Total Orders . | . . . Ally Attacks . | . . . Total Damage . | . . . Kills . | . . . Allies Corrupted . | . . . Allies Melted . | . . . Intel | -11 -10 -10 ------- Run | Yrd Mat Min Robot Analysis Total . | . . . Derelict Logs Recovered 1 | . . 1 Drone Launches . | . . . Drone Recoveries . | . . . Exploration | -11 -10 -10 ------------- Run | Yrd Mat Min Turns Passed 813 | 130 275 408 Spaces Moved 474 | 95 198 181 Core 9 | 7 . 2 Treads 126 | . . 126 Legs 339 | 88 198 53 Wheels . | . . . Hover . | . . . Flight . | . . . Fastest Speed 50 | 50 120 120 Average Speed 134 | 115 120 160 Slowest Speed 190 | 120 120 190 Overloaded Moves . | . . . Propulsion Burnouts . | . . . Robots Hopped . | . . . Cave-ins Triggered . | . . . Exploration Rate (%) 20 | 5 32 23 Regions Visited 2 Branch Regions 1 Pre-discovered Areas 1 | . . 1 Known Exits Taken . | . . . Unknown Exits Taken 2 | 1 1 . Scrap Searched . | . . . Spaces Dug . | . . . Terrain Destroyed 51 | . 38 13 Melee . | . . . Projectile . | . . . AOE 51 | . 38 13 Terrain Rammed . | . . . Walls Destroyed . | . . . Machines Disabled . | . . . Actions | -11 -10 -10 --------- Run | Yrd Mat Min Total 579 | 110 222 247 Wait 16 | . . 16 Move 472 | 94 197 181 Hop . | . . . Pick Up 19 | 8 5 6 Fast Attach 8 | 6 2 . Attach 4 | . . 4 Detach . | . . . Swap 10 | 1 3 6 Drop 9 | . 7 2 Fire 39 | 1 8 30 Melee 2 | . . 2 Ram . | . . . Kick . | . . . Crush . | . . . Escape Stasis . | . . . Rewire . | . . . Trap . | . . . Miscellaneous . | . . . Route ------- -11/Scrapyard -10/Materials -10/Mines (discovered 1 exit: [*Mat]) History --------- Turn | Location | Event 6 | -11/Scrapyard | Discovered new exit (range 14) 131 | -11/Scrapyard | Entered Materials 304 | -10/Materials | Build established: Mutant 341 | -10/Materials | Discovered new exit (range 12) 406 | -10/Materials | Entered Mines 464 | -10/Mines | Lost 4 parts (1p1n2w) 569 | -10/Mines | Found a hidden stash of uninstalled traps 643 | -10/Mines | Discovered new exit (range 11) 781 | -10/Mines | Assembled infested the area 785 | -10/Mines | Learned location of Storage (-7) 800 | -10/Mines | Core integrity fell below 50% 810 | -10/Mines | Core integrity fell below 20% 814 | -10/Mines | Destroyed by D-53 Grenadier with Mini Grenade Launcher Last Messages --------------- 00758_ Acquired 20 matter. 00761_ K-01 Serf collects debris. 00766_ Acquired 15 matter. 00767_ Acquired 16 matter. 00768_ K-01 Serf collects debris. 00781_ ALERT: Infestation in the mines, dispatching Demolisher response squad. 00785_ Acquired derelict log, extracted data. World map updated: -7/Storage. 00799_ C-30 ARC bursts open, deploying its payload. 00799_ D-53 Grenadier unfolds itself. 00802_ Datajack destroyed. 00802_ Laser Drill disabled. 00803_ The unstable cave ceiling collapses. 00807_ Beam Cannon destroyed. 00807_ Lgt. Treads destroyed. 00809_ Ion Engine destroyed. 00810_ U-05 Engineer lays Concrete. 00812_ Lgt. Treads destroyed. 00813_ U-05 Engineer lays Concrete. Map ----- +----------------------------------------------------+ | ?????????????????????????????????????????????????? | | ?????????????????????????????????????????????????? | | ?????????????????????????????????????????????????? | | ?????????????????????????????????????????????????? | | ?????????????????????????????????????????????????? | | ?????????????????????????????????????????????????? | | ?????????????????????????????????????????????????? | | ?????????????????????????????????????????????????? | | ?????????????????????????????????????????????????? | | ?????????????????????????????????????????????????? | | ?????????????????????????????????????????????????? | | ?????????????????????????????????????????????????? | | ?????????????????????????????????????????????????? | | ???????????????????#?????????????????????????????? | | ??????????????????? ????????????????????????????? | | ???????????????????# ????????????????????????????? | | ???????????????????#$#???????????????????????????? | | ???????????# ?????## ??????????????????????????? | | ??????????## ##???# ??????????????????????????? | | ?????????## #?## ??????????????????????????? | | ?????????# ## ######????????????????????? | | ?????????# ?????????????????????? | | ?????????? # ##?????? ?????????????? | | ???????????? # ##????? ?????????????? | | ?????????????# # #????? ?????????????? | | ??????????????# ## @ ##???? #????????????? | | ??????????????# u #???? #????????????? | | ??????????????## ##???? #????????????? | | ???????????????##u #????# #????????????? | | ????????????????# #????# #????????????? | | ????????????????## #????# #????????????? | | ?????????????????# [d ##????# #????????????? | | ?????????????????# #?????# #????????????? | | ?????????????????## d########????## #???????###### | | ?????????????????## #########??## ##??????# | | ????????????????## #### ##?##### " | | ???????????????## & ### "" | | ???????????????# " | | ???????????????# " ########## | | ???????????????## "%##????????#### # # | | ????????????????# "#???#####????## ###### | | ????????????????# ##?## ##????####????###### | | ????????????????## #?# ##???###??????????? | | ?????????????????## #?# ##?# ##?????????? | | ??????????????????#### #??# ## #?????????? | | ?????????????????????# #??#### #?????????? | | ?????????????????????# #?????## ##?????????? | | ?????????????????????# #??????## ##??????????? | | ?????????????????????# ######### < ##???????????? | | ?????????????????????# #????????????? | +----------------------------------------------------+ Best States ------------- Heat Dissipation 25 Energy Generation 10 Energy Capacity 250 Matter Stores 287 Matter Capacity 300 Sight Range 16 Terrain Scan Density 10 ECM Strength 1 Evasion (%) 55 Recoil Reduction 2 Item Schematics ----------------- None Robot Schematics ------------------ None Fabricated ------------ Nothing Alien Tech Used ----------------- None Achievements -------------- It's Just You Challenges ------------ None Game ------ Seed ArmoredGaussCannon Manual? 0 Play Time 00:18:40 Cumulative 1.5 hours Start 2025.03.25 @ 22:50:54 End 2025.03.25 @ 23:07:16 Sessions 1 Manual Loads 0 Difficulty Rogue Special Mode None Game No. 4 Rogue 4 Adventurer 0 Explorer 0 Win Type - Total 0 Types 0/0/0/0/0/0/0/0/0 Lore% 0 Gallery% 4 Achievement% 3 Wizard Run 0 Options --------- Layout 0 ASCII 1 Keyboard 1 Movement Vi Keybinds 0 Fullscreen 1 Font 14/SmallcapsGlow Map View 72x54 Zoom Use 0% Tactical HUD 1 Map Filters NONE Filters NONE Steam 0 RUN: 2fe43dae-eed3-4cde-9b7d-71660ff8bfe1